[Event "*** Titled Tuesday Blitz"]
[Site "Chess.com"]
[Date "2020.05.19"]
[Round "6"]
[White "Quattroporte300"]
[Black "Tashik"]
[Result "0-1"]
[WhiteElo "2316"]
[BlackElo "2492"]
[TimeControl "180+1"]
[EndTime "13:08:33 PDT"]
[Termination "Tashik won by checkmate"]

1. e4 {[%clk 0:03:00.9]} 1... e5 {[%clk 0:02:48.7]} 2. Nf3 {[%clk 0:03:00.6]}
2... Nc6 {[%clk 0:02:48.6]} 3. Bb5 {[%clk 0:03:00.9]} 3... a6 {[%clk 0:02:48.4]}
4. Ba4 {[%clk 0:03:00.8]} 4... Nf6 {[%clk 0:02:48.9]} 5. O-O {[%clk 0:03:01.2]}
5... b5 {[%clk 0:02:49.4]} 6. Bb3 {[%clk 0:03:00.6]} 6... Bc5 {[%clk 0:02:50]}
7. a4 {[%clk 0:02:55.7]} 7... Rb8 {[%clk 0:02:49.9]} 8. d3 {[%clk 0:02:53.8]}
8... h6 {[%clk 0:02:46.5]} 9. Nc3 {[%clk 0:02:48.9]} 9... d6 {[%clk 0:02:42.1]}
10. h3 {[%clk 0:02:47.3]} 10... O-O {[%clk 0:02:41.7]} 11. Nd5 {[%clk
0:02:42.4]} 11... Nxd5 {[%clk 0:02:38.4]} 12. Bxd5 {[%clk 0:02:40.2]} 12... Ne7
{[%clk 0:02:38.4]} 13. Bb3 {[%clk 0:02:39.3]} 13... Ng6 {[%clk 0:02:32.9]} 14.
Be3 {[%clk 0:02:39.1]} 14... Qf6 {[%clk 0:02:27.3]} 15. axb5 {[%clk 0:02:21.8]}
15... axb5 {[%clk 0:02:27.2]} 16. Bxc5 {[%clk 0:01:44.7]} 16... dxc5 {[%clk
0:02:26.9]} 17. Nh2 {[%clk 0:01:40.6]} 17... Nf4 {[%clk 0:02:18.5]} 18. Ng4
{[%clk 0:01:37.7]} 18... Qg5 {[%clk 0:02:18.7]} 19. Kh2 {[%clk 0:01:21.1]} 19...
c4 {[%clk 0:01:53.4]} 20. dxc4 {[%clk 0:01:18.1]} 20... bxc4 {[%clk 0:01:54.3]}
21. Bxc4 {[%clk 0:01:17.7]} 21... Rxb2 {[%clk 0:01:54.8]} 22. Bb3 {[%clk
0:01:10.7]} 22... Rd8 {[%clk 0:01:34.4]} 23. Qc1 {[%clk 0:00:48]} 23... Bxg4
{[%clk 0:01:18.2]} 24. Qxb2 {[%clk 0:00:25]} 24... Bxh3 {[%clk 0:01:15.8]} 25.
g3 {[%clk 0:00:15.4]} 25... Bxf1 {[%clk 0:00:59.4]} 26. Rxf1 {[%clk 0:00:10.9]}
26... Qh5+ {[%clk 0:00:52.5]} 27. Kg1 {[%clk 0:00:11.3]} 27... Nh3+ {[%clk
0:00:40.5]} 28. Kg2 {[%clk 0:00:11.6]} 28... Ng5 {[%clk 0:00:41]} 29. c3 {[%clk
0:00:04.2]} 29... Qh3+ {[%clk 0:00:39.9]} 30. Kg1 {[%clk 0:00:04.3]} 30... Nf3#
{[%clk 0:00:40.4]} 0-1

[Event "*** Titled Tuesday Blitz"]
[Site "Chess.com"]
[Date "2020.05.19"]
[Round "6"]
[White "ALeks_Ivlev"]
[Black "Bossche-CM"]
[Result "0-1"]
[WhiteElo "2586"]
[BlackElo "2473"]
[TimeControl "180+1"]
[EndTime "13:08:34 PDT"]
[Termination "Bossche-CM won by resignation"]

1. d4 {[%clk 0:03:00.9]} 1... Nf6 {[%clk 0:03:00.1]} 2. c4 {[%clk 0:03:01.1]}
2... e6 {[%clk 0:03:00.2]} 3. Nf3 {[%clk 0:03:00.7]} 3... c5 {[%clk 0:02:59.4]}
4. d5 {[%clk 0:02:59.6]} 4... exd5 {[%clk 0:03:00]} 5. cxd5 {[%clk 0:03:00.5]}
5... d6 {[%clk 0:03:00.4]} 6. Nc3 {[%clk 0:03:00.7]} 6... g6 {[%clk 0:03:01]} 7.
Bf4 {[%clk 0:03:00.2]} 7... a6 {[%clk 0:02:57.6]} 8. a4 {[%clk 0:03:00]} 8...
Bg7 {[%clk 0:02:57.2]} 9. h3 {[%clk 0:02:59.5]} 9... O-O {[%clk 0:02:57.6]} 10.
e3 {[%clk 0:02:59.6]} 10... Re8 {[%clk 0:02:50.5]} 11. Be2 {[%clk 0:02:58.4]}
11... Ne4 {[%clk 0:02:48]} 12. Nxe4 {[%clk 0:02:53.9]} 12... Rxe4 {[%clk
0:02:48.9]} 13. Nd2 {[%clk 0:02:54.4]} 13... Rb4 {[%clk 0:02:46.9]} 14. Nc4
{[%clk 0:02:54.3]} 14... Bf8 {[%clk 0:02:42.8]} 15. O-O {[%clk 0:02:51.3]} 15...
b5 {[%clk 0:02:15.6]} 16. axb5 {[%clk 0:02:49.1]} 16... Rxb5 {[%clk 0:02:15.4]}
17. Nxd6 {[%clk 0:02:42.9]} 17... Rxb2 {[%clk 0:02:14.9]} 18. Nc4 {[%clk
0:02:31.9]} 18... Rb4 {[%clk 0:02:12.5]} 19. Na5 {[%clk 0:02:20.3]} 19... Bg7
{[%clk 0:01:38.6]} 20. Ra2 {[%clk 0:02:13.7]} 20... Bd7 {[%clk 0:01:38.3]} 21.
Bf3 {[%clk 0:02:10.7]} 21... Bb5 {[%clk 0:01:31.5]} 22. Nb7 {[%clk 0:01:55.8]}
22... Qb6 {[%clk 0:01:26.6]} 23. d6 {[%clk 0:01:22.4]} 23... Bxf1 {[%clk
0:01:24.2]} 24. Nxc5 {[%clk 0:00:32]} 24... Rb1 {[%clk 0:01:01.5]} 25. Na4
{[%clk 0:00:31.8]} 25... Qb5 {[%clk 0:00:36.8]} 26. Qd2 {[%clk 0:00:19.1]} 26...
Be2+ {[%clk 0:00:31.7]} 27. Kh2 {[%clk 0:00:19]} 27... Bxf3 {[%clk 0:00:32.2]}
28. gxf3 {[%clk 0:00:19.5]} 28... Qf1 {[%clk 0:00:27.9]} 29. h4 {[%clk
0:00:13.9]} 29... Qh1+ {[%clk 0:00:25.9]} 0-1

[Event "*** Titled Tuesday Blitz"]
[Site "Chess.com"]
[Date "2020.05.19"]
[Round "6"]
[White "lrestevez"]
[Black "ljuks68"]
[Result "0-1"]
[WhiteElo "2021"]
[BlackElo "2343"]
[TimeControl "180+1"]
[EndTime "13:08:34 PDT"]
[Termination "ljuks68 won by resignation"]

1. e4 {[%clk 0:02:59.9]} 1... e6 {[%clk 0:02:36.5]} 2. d4 {[%clk 0:02:59.3]}
2... d5 {[%clk 0:02:36]} 3. Nc3 {[%clk 0:02:59.3]} 3... Bb4 {[%clk 0:02:35.3]}
4. Bd2 {[%clk 0:02:59]} 4... dxe4 {[%clk 0:02:34.3]} 5. Qg4 {[%clk 0:02:58.4]}
5... Nf6 {[%clk 0:02:17.3]} 6. Qxg7 {[%clk 0:02:56.8]} 6... Rg8 {[%clk
0:02:17.3]} 7. Qh6 {[%clk 0:02:57.3]} 7... Rg6 {[%clk 0:02:17.3]} 8. Qe3 {[%clk
0:02:56.9]} 8... b6 {[%clk 0:02:10.8]} 9. O-O-O {[%clk 0:02:54.9]} 9... Bb7
{[%clk 0:02:10.4]} 10. Nxe4 {[%clk 0:02:24]} 10... Bxd2+ {[%clk 0:02:04.7]} 11.
Nxd2 {[%clk 0:02:22.6]} 11... Rxg2 {[%clk 0:01:49.2]} 12. Bxg2 {[%clk
0:02:17.1]} 12... Bxg2 {[%clk 0:01:49]} 13. Ne2 {[%clk 0:02:14.1]} 13... Bxh1
{[%clk 0:01:48.8]} 14. Rxh1 {[%clk 0:02:14.6]} 14... Qd5 {[%clk 0:01:46.6]} 15.
Qf3 {[%clk 0:02:04.2]} 15... Qxf3 {[%clk 0:01:44.7]} 16. Nxf3 {[%clk 0:02:05.1]}
16... Nc6 {[%clk 0:01:37.7]} 17. c3 {[%clk 0:02:05.5]} 17... Ne7 {[%clk
0:01:35.1]} 18. Ne5 {[%clk 0:02:03.5]} 18... Ng6 {[%clk 0:01:31.5]} 19. f4
{[%clk 0:02:03.3]} 19... Nd5 {[%clk 0:01:25.2]} 20. Rf1 {[%clk 0:01:44.4]} 20...
f6 {[%clk 0:01:23.7]} 21. Ng4 {[%clk 0:01:24.7]} 21... h5 {[%clk 0:01:15.6]} 22.
f5 {[%clk 0:01:13.8]} 22... hxg4 {[%clk 0:01:12]} 23. fxg6 {[%clk 0:01:12.6]}
23... Ke7 {[%clk 0:01:11]} 24. Nf4 {[%clk 0:01:03.7]} 24... Nxf4 {[%clk
0:01:06.4]} 25. Rxf4 {[%clk 0:01:04.6]} 25... f5 {[%clk 0:01:06.2]} 26. d5
{[%clk 0:01:02.1]} 26... Rg8 {[%clk 0:01:03.4]} 27. dxe6 {[%clk 0:01:01.9]}
27... Kxe6 {[%clk 0:01:03.3]} 28. h3 {[%clk 0:00:59.5]} 28... Rxg6 {[%clk
0:01:02.5]} 29. hxg4 {[%clk 0:00:59]} 29... fxg4 {[%clk 0:01:02.5]} 30. Rf2
{[%clk 0:00:53.9]} 30... g3 {[%clk 0:01:02.3]} 31. Rg2 {[%clk 0:00:54.3]} 31...
Ke5 {[%clk 0:01:02.8]} 32. Kd2 {[%clk 0:00:54.6]} 32... Kf4 {[%clk 0:01:03.4]}
33. Ke2 {[%clk 0:00:54.9]} 33... Rh6 {[%clk 0:01:01.1]} 34. Kf1 {[%clk
0:00:52.3]} 34... Rh2 {[%clk 0:00:58.5]} 35. Kg1 {[%clk 0:00:36.1]} 35... Rxg2+
{[%clk 0:00:49.2]} 36. Kxg2 {[%clk 0:00:37]} 36... Kg4 {[%clk 0:00:48.6]} 37. a4
{[%clk 0:00:35.6]} 37... a5 {[%clk 0:00:35.7]} 38. b4 {[%clk 0:00:35]} 38... c5
{[%clk 0:00:35.1]} 39. bxa5 {[%clk 0:00:33.8]} 39... bxa5 {[%clk 0:00:34.6]} 40.
c4 {[%clk 0:00:33.8]} 40... Kf4 {[%clk 0:00:34.2]} 41. Kh3 {[%clk 0:00:34.7]}
41... Kf3 {[%clk 0:00:34.2]} 42. Kh4 {[%clk 0:00:34.8]} 42... g2 {[%clk
0:00:34.7]} 0-1

[Event "*** Titled Tuesday Blitz"]
[Site "Chess.com"]
[Date "2020.05.19"]
[Round "6"]
[White "Msb2"]
[Black "LizaSolovyova"]
[Result "1-0"]
[WhiteElo "2890"]
[BlackElo "2542"]
[TimeControl "180+1"]
[EndTime "13:08:36 PDT"]
[Termination "Msb2 won by resignation"]

1. d4 {[%clk 0:03:00.9]} 1... f5 {[%clk 0:02:58.1]} 2. Bg5 {[%clk 0:03:00]} 2...
b6 {[%clk 0:02:56.4]} 3. c4 {[%clk 0:02:57.2]} 3... Bb7 {[%clk 0:02:56.6]} 4. e3
{[%clk 0:02:57.3]} 4... Nf6 {[%clk 0:02:53.1]} 5. Bxf6 {[%clk 0:02:56.9]} 5...
exf6 {[%clk 0:02:54]} 6. Nc3 {[%clk 0:02:57.6]} 6... Bb4 {[%clk 0:02:53.5]} 7.
Nf3 {[%clk 0:02:54.6]} 7... Bxc3+ {[%clk 0:02:50.6]} 8. bxc3 {[%clk 0:02:54.6]}
8... Be4 {[%clk 0:02:49.2]} 9. Nd2 {[%clk 0:02:53.6]} 9... Qe7 {[%clk
0:02:42.7]} 10. Nxe4 {[%clk 0:02:51]} 10... fxe4 {[%clk 0:02:42.6]} 11. Be2
{[%clk 0:02:46.8]} 11... O-O {[%clk 0:02:41.7]} 12. O-O {[%clk 0:02:46.4]} 12...
d6 {[%clk 0:02:39]} 13. a4 {[%clk 0:02:38.5]} 13... a5 {[%clk 0:02:38.8]} 14.
Qb3 {[%clk 0:02:28.7]} 14... Kh8 {[%clk 0:02:36.1]} 15. Qb5 {[%clk 0:02:21.6]}
15... f5 {[%clk 0:02:29.1]} 16. Rae1 {[%clk 0:02:15.2]} 16... Nd7 {[%clk
0:02:27.4]} 17. Qc6 {[%clk 0:02:14.2]} 17... Nf6 {[%clk 0:02:27]} 18. f3 {[%clk
0:02:14.4]} 18... Rae8 {[%clk 0:02:20.7]} 19. fxe4 {[%clk 0:02:09.2]} 19... Nxe4
{[%clk 0:02:19.5]} 20. Bd3 {[%clk 0:02:04.3]} 20... g6 {[%clk 0:01:35.4]} 21.
Bxe4 {[%clk 0:02:02.9]} 21... fxe4 {[%clk 0:01:35.5]} 22. h3 {[%clk 0:01:42]}
22... Kg7 {[%clk 0:01:34.6]} 23. Qd5 {[%clk 0:01:35.1]} 23... Rxf1+ {[%clk
0:01:31.3]} 24. Rxf1 {[%clk 0:01:36]} 24... Rf8 {[%clk 0:01:30.8]} 25. Rxf8
{[%clk 0:01:35.8]} 25... Kxf8 {[%clk 0:01:30.8]} 26. Kf2 {[%clk 0:01:33.9]}
26... Kg7 {[%clk 0:01:27.6]} 27. Kg3 {[%clk 0:01:30.7]} 27... Kh6 {[%clk
0:01:08.7]} 28. h4 {[%clk 0:01:26.5]} 28... g5 {[%clk 0:01:01.9]} 29. Kg4 {[%clk
0:01:00.9]} 29... gxh4 {[%clk 0:00:57.1]} 30. Qh5+ {[%clk 0:00:47.5]} 30... Kg7
{[%clk 0:00:56.7]} 31. Qg5+ {[%clk 0:00:48.4]} 31... Qxg5+ {[%clk 0:00:47.7]}
32. Kxg5 {[%clk 0:00:49.3]} 32... d5 {[%clk 0:00:47.9]} 33. cxd5 {[%clk
0:00:46.7]} 33... Kf7 {[%clk 0:00:43.1]} 34. c4 {[%clk 0:00:45.4]} 34... Ke7
{[%clk 0:00:43.1]} 35. Kf5 {[%clk 0:00:42.9]} 35... b5 {[%clk 0:00:38.5]} 36.
cxb5 {[%clk 0:00:40.9]} 36... Kd6 {[%clk 0:00:38.8]} 37. Kxe4 {[%clk 0:00:41.4]}
37... h6 {[%clk 0:00:37.8]} 38. Kd3 {[%clk 0:00:41.8]} 38... Kxd5 {[%clk
0:00:37.9]} 39. e4+ {[%clk 0:00:42.4]} 39... Kd6 {[%clk 0:00:37.9]} 40. Ke3
{[%clk 0:00:43.1]} 40... h5 {[%clk 0:00:35.7]} 41. Kf4 {[%clk 0:00:42.7]} 41...
Ke6 {[%clk 0:00:36]} 42. Kg5 {[%clk 0:00:43]} 42... c6 {[%clk 0:00:34.1]} 43.
bxc6 {[%clk 0:00:42.3]} 1-0

[Event "*** Titled Tuesday Blitz"]
[Site "Chess.com"]
[Date "2020.05.19"]
[Round "6"]
[White "RaunakSadhwani2005"]
[Black "ENEASZ"]
[Result "1-0"]
[WhiteElo "2799"]
[BlackElo "2534"]
[TimeControl "180+1"]
[EndTime "13:08:36 PDT"]
[Termination "RaunakSadhwani2005 won by resignation"]

1. e4 {[%clk 0:03:00.9]} 1... d6 {[%clk 0:02:59.1]} 2. d4 {[%clk 0:02:40.4]}
2... Nf6 {[%clk 0:02:58.7]} 3. Nc3 {[%clk 0:02:41.3]} 3... e5 {[%clk 0:02:59.1]}
4. Nf3 {[%clk 0:02:40.6]} 4... Nbd7 {[%clk 0:02:59.1]} 5. Bc4 {[%clk 0:02:40.8]}
5... Be7 {[%clk 0:02:59.3]} 6. O-O {[%clk 0:02:40.7]} 6... O-O {[%clk
0:02:59.5]} 7. a4 {[%clk 0:02:38.4]} 7... c6 {[%clk 0:02:59.9]} 8. Ba2 {[%clk
0:02:38.2]} 8... b6 {[%clk 0:02:50.6]} 9. Qe2 {[%clk 0:02:37.8]} 9... a6 {[%clk
0:02:42.9]} 10. d5 {[%clk 0:02:35.5]} 10... c5 {[%clk 0:02:42]} 11. Bc4 {[%clk
0:02:35.1]} 11... Nh5 {[%clk 0:02:36.4]} 12. g3 {[%clk 0:02:34.5]} 12... g6
{[%clk 0:02:33.9]} 13. Bh6 {[%clk 0:02:33.2]} 13... Ng7 {[%clk 0:02:34.2]} 14.
h4 {[%clk 0:02:33.1]} 14... Nf6 {[%clk 0:02:33.4]} 15. Nh2 {[%clk 0:02:28]}
15... Nfh5 {[%clk 0:02:31.3]} 16. Qd1 {[%clk 0:02:25.8]} 16... Rb8 {[%clk
0:02:02.4]} 17. Be2 {[%clk 0:02:23.7]} 17... Re8 {[%clk 0:01:56.6]} 18. Be3
{[%clk 0:02:13.3]} 18... Rf8 {[%clk 0:01:39.8]} 19. Ng4 {[%clk 0:02:10.3]} 19...
Kh8 {[%clk 0:01:37.4]} 20. Nh6 {[%clk 0:02:10]} 20... Bh3 {[%clk 0:01:31]} 21.
Re1 {[%clk 0:02:08.6]} 21... Bxh4 {[%clk 0:01:31.1]} 22. Bxh5 {[%clk 0:01:38.1]}
22... Nxh5 {[%clk 0:01:29]} 23. Qf3 {[%clk 0:01:38.7]} 23... Bf6 {[%clk
0:00:30]} 24. g4 {[%clk 0:01:37.5]} 24... Nf4 {[%clk 0:00:30.3]} 25. Bxf4 {[%clk
0:01:35.9]} 25... exf4 {[%clk 0:00:31.2]} 26. Qxh3 {[%clk 0:01:36.2]} 26... Kg7
{[%clk 0:00:28.3]} 27. Kg2 {[%clk 0:01:35.6]} 27... b5 {[%clk 0:00:28.1]} 28.
axb5 {[%clk 0:01:35.1]} 28... axb5 {[%clk 0:00:28.8]} 29. Rh1 {[%clk 0:01:35.1]}
29... Rh8 {[%clk 0:00:27.5]} 30. Ra7 {[%clk 0:01:33.7]} 30... Be7 {[%clk
0:00:22]} 31. g5 {[%clk 0:01:29.9]} 31... b4 {[%clk 0:00:21.4]} 32. Ne2 {[%clk
0:01:29.3]} 32... Ra8 {[%clk 0:00:19.2]} 33. Rb7 {[%clk 0:01:16.1]} 33... Rb8
{[%clk 0:00:18.5]} 34. Rd7 {[%clk 0:01:16.1]} 34... Qe8 {[%clk 0:00:16.7]} 35.
Nxf4 {[%clk 0:01:16]} 35... b3 {[%clk 0:00:13.5]} 36. c3 {[%clk 0:01:14.9]}
36... Rd8 {[%clk 0:00:10.9]} 37. Ra7 {[%clk 0:01:02.6]} 37... Ra8 {[%clk
0:00:10.7]} 38. Rxa8 {[%clk 0:00:57.7]} 38... Qxa8 {[%clk 0:00:11.6]} 39. Nxf7
{[%clk 0:00:58]} 39... Kxf7 {[%clk 0:00:07.2]} 40. Qe6+ {[%clk 0:00:58.4]} 40...
Ke8 {[%clk 0:00:07.2]} 41. Nxg6 {[%clk 0:00:58.8]} 1-0

[Event "*** Titled Tuesday Blitz"]
[Site "Chess.com"]
[Date "2020.05.19"]
[Round "6"]
[White "BillieKimbah"]
[Black "Jagerrmeisterr"]
[Result "1-0"]
[WhiteElo "2859"]
[BlackElo "2659"]
[TimeControl "180+1"]
[EndTime "13:08:38 PDT"]
[Termination "BillieKimbah won by resignation"]

1. Nf3 {[%clk 0:03:00.9]} 1... Nf6 {[%clk 0:02:59.8]} 2. g3 {[%clk 0:03:01.2]}
2... b6 {[%clk 0:03:00.4]} 3. Bg2 {[%clk 0:03:00.3]} 3... Bb7 {[%clk 0:03:01]}
4. d3 {[%clk 0:03:00.3]} 4... g6 {[%clk 0:03:01.5]} 5. e4 {[%clk 0:03:00.2]}
5... d6 {[%clk 0:03:02]} 6. O-O {[%clk 0:02:58.5]} 6... Nbd7 {[%clk 0:03:02.3]}
7. Re1 {[%clk 0:02:56.1]} 7... Bg7 {[%clk 0:03:02.1]} 8. c4 {[%clk 0:02:53.8]}
8... O-O {[%clk 0:03:00]} 9. Nc3 {[%clk 0:02:53.9]} 9... e5 {[%clk 0:02:59.7]}
10. d4 {[%clk 0:02:52.4]} 10... h6 {[%clk 0:02:49.4]} 11. h3 {[%clk 0:02:49.1]}
11... a6 {[%clk 0:02:40.6]} 12. d5 {[%clk 0:02:36.1]} 12... Nh7 {[%clk
0:02:31.9]} 13. Rb1 {[%clk 0:02:35]} 13... a5 {[%clk 0:02:31.9]} 14. a3 {[%clk
0:02:33.6]} 14... f5 {[%clk 0:02:27.2]} 15. Nh4 {[%clk 0:02:32.1]} 15... Qf6
{[%clk 0:02:26.9]} 16. exf5 {[%clk 0:02:05.8]} 16... gxf5 {[%clk 0:02:26.1]} 17.
Nb5 {[%clk 0:01:59.7]} 17... Rac8 {[%clk 0:02:14.4]} 18. Qh5 {[%clk 0:01:59.5]}
18... Nc5 {[%clk 0:02:06.3]} 19. Be3 {[%clk 0:01:52.5]} 19... Ba6 {[%clk
0:01:54.7]} 20. b4 {[%clk 0:01:49.1]} 20... Nd3 {[%clk 0:01:51.4]} 21. Red1
{[%clk 0:01:48.1]} 21... Bxb5 {[%clk 0:01:51.3]} 22. cxb5 {[%clk 0:01:47.3]}
22... f4 {[%clk 0:01:35]} 23. Rxd3 {[%clk 0:01:36.4]} 23... fxe3 {[%clk
0:01:33.9]} 24. fxe3 {[%clk 0:01:36.6]} 24... Qf2+ {[%clk 0:01:23.4]} 25. Kh2
{[%clk 0:01:36.3]} 25... e4 {[%clk 0:01:23.6]} 26. Rdd1 {[%clk 0:01:25.5]} 26...
Ng5 {[%clk 0:01:06.7]} 27. Rf1 {[%clk 0:01:15.9]} 27... Qa2 {[%clk 0:01:02.4]}
28. Kh1 {[%clk 0:01:06]} 28... axb4 {[%clk 0:00:53.2]} 29. axb4 {[%clk
0:01:06.9]} 29... Qxd5 {[%clk 0:00:52.8]} 30. Ng6 {[%clk 0:01:02.9]} 30... Rxf1+
{[%clk 0:00:31.7]} 31. Rxf1 {[%clk 0:01:03.8]} 31... Qe6 {[%clk 0:00:31.8]} 32.
h4 {[%clk 0:01:01.5]} 32... Nh7 {[%clk 0:00:28.8]} 33. Nf4 {[%clk 0:00:52.6]}
33... Qc4 {[%clk 0:00:19.7]} 34. Bh3 {[%clk 0:00:48.1]} 34... Kh8 {[%clk
0:00:16.3]} 35. Ng6+ {[%clk 0:00:44.8]} 35... Kg8 {[%clk 0:00:16.8]} 36. Ne7+
{[%clk 0:00:44.5]} 36... Kh8 {[%clk 0:00:17.4]} 37. Nxc8 {[%clk 0:00:42.9]}
37... Nf6 {[%clk 0:00:16.1]} 38. Qf5 {[%clk 0:00:38.9]} 1-0

[Event "*** Titled Tuesday Blitz"]
[Site "Chess.com"]
[Date "2020.05.19"]
[Round "6"]
[White "Mr_Sinigami"]
[Black "WPWPWP-2015"]
[Result "0-1"]
[WhiteElo "2568"]
[BlackElo "2421"]
[TimeControl "180+1"]
[EndTime "13:08:39 PDT"]
[Termination "WPWPWP-2015 won on time"]

1. d4 {[%clk 0:03:00.9]} 1... Nf6 {[%clk 0:02:56.2]} 2. Nf3 {[%clk 0:03:00.6]}
2... e6 {[%clk 0:02:56]} 3. Bf4 {[%clk 0:03:01]} 3... b6 {[%clk 0:02:55]} 4. e3
{[%clk 0:02:57.4]} 4... Bb7 {[%clk 0:02:54.7]} 5. h3 {[%clk 0:02:57.1]} 5... d6
{[%clk 0:02:54.3]} 6. Be2 {[%clk 0:02:54.9]} 6... Be7 {[%clk 0:02:54.3]} 7. O-O
{[%clk 0:02:54.5]} 7... O-O {[%clk 0:02:54.4]} 8. a4 {[%clk 0:02:54.5]} 8... a5
{[%clk 0:02:51.1]} 9. Na3 {[%clk 0:02:53.3]} 9... Nc6 {[%clk 0:02:49.8]} 10. c3
{[%clk 0:02:52.6]} 10... Re8 {[%clk 0:02:48.4]} 11. Nd2 {[%clk 0:02:44.3]} 11...
Nd5 {[%clk 0:02:47]} 12. Bg3 {[%clk 0:02:39.5]} 12... f5 {[%clk 0:02:46.5]} 13.
Bf3 {[%clk 0:02:30.6]} 13... Bg5 {[%clk 0:02:42.4]} 14. e4 {[%clk 0:02:12.1]}
14... fxe4 {[%clk 0:02:22.5]} 15. Bxe4 {[%clk 0:01:08.1]} 15... Nf6 {[%clk
0:02:19.9]} 16. Bf3 {[%clk 0:01:05.7]} 16... Qd7 {[%clk 0:02:12.2]} 17. Re1
{[%clk 0:00:57.5]} 17... Rad8 {[%clk 0:02:09.5]} 18. Nb5 {[%clk 0:00:54.9]}
18... Ba6 {[%clk 0:01:51.1]} 19. Ne4 {[%clk 0:00:50.6]} 19... Nxe4 {[%clk
0:01:47.7]} 20. Bxe4 {[%clk 0:00:51.5]} 20... g6 {[%clk 0:01:37.9]} 21. h4
{[%clk 0:00:44]} 21... Bf6 {[%clk 0:01:33.1]} 22. h5 {[%clk 0:00:43.7]} 22...
Ne7 {[%clk 0:01:15.3]} 23. hxg6 {[%clk 0:00:41.5]} 23... hxg6 {[%clk 0:01:14]}
24. Qg4 {[%clk 0:00:38.9]} 24... Kg7 {[%clk 0:01:13.7]} 25. Bd3 {[%clk
0:00:31.4]} 25... Nf5 {[%clk 0:01:04.8]} 26. Rad1 {[%clk 0:00:22]} 26... Bc8
{[%clk 0:01:00.8]} 27. Na7 {[%clk 0:00:16.2]} 27... Bb7 {[%clk 0:00:59.7]} 28.
Nb5 {[%clk 0:00:13.7]} 28... Qf7 {[%clk 0:00:43.5]} 29. Rd2 {[%clk 0:00:05.1]}
29... c6 {[%clk 0:00:40.7]} 30. Na3 {[%clk 0:00:03.5]} 30... Bc8 {[%clk
0:00:40.4]} 31. Nc4 {[%clk 0:00:01.8]} 31... b5 {[%clk 0:00:39.8]} 0-1